bitfinex/quotes_SOLUSD_20240813
["timestamp","ask_amount","ask_price","bid_price","bid_amount"]
[1723511130020,5.4537,146.69,146.64,5.4555]
[1723511130229,5.4541,146.68,146.63,27.2656]
[1723511130421,60.5797,146.74,146.64,13.6379]
[1723511130611,45.12549,146.73,146.64,13.6379]
[1723511130811,0.12549,146.73,146.66,13.6363]
[1723511131012,46.95,146.77,146.66,13.6363]
[1723511131212,45.50196,146.76,146.66,13.6363]
[1723511131624,5.4522,146.73,146.68,5.4539]
[1723511131824,5.4522,146.73,146.66,13.6363]
[1723511131825,5.4533,146.7,146.66,13.6363]
[1723511132037,5.57839,146.72,146.66,19.0909]
[1723511132345,5.453,146.71,146.66,19.0909]
[1723511132507,5.453,146.71,146.67,5.4544]
[1723511132935,5.453,146.71,146.66,19.091]
[1723511133323,0.12549,146.74,146.63,21.8097]
[1723511133524,0.12549,146.74,146.7,5.4533]
[1723511133525,5.4518,146.74,146.7,5.4533]
[1723511133934,5.4518,146.74,146.68,19.0881]
[1723511134117,5.4523,146.73,146.68,19.0881]
[1723511135208,5.4519,146.74,146.69,5.4536]
[1723511135620,20.0,146.77,146.68,13.6345]
[1723511135621,20.0,146.76,146.68,13.6345]
[1723511135833,13.75279,146.77,146.65,13.6378]
[1723511135834,0.12549,146.73,146.65,13.6378]
[1723511136015,5.4533,146.7,146.65,19.0928]
[1723511136213,45.12549,146.73,146.67,13.6353]
[1723511136407,47.20098,146.75,146.69,5.4536]
[1723511136408,0.12549,146.75,146.69,5.4536]
[1723511136613,0.12549,146.75,146.64,0.12549]
[1723511136817,7.129875,146.78,146.73,5.4521]
[1723511137022,80.5722,146.82,146.71,13.6317]
[1723511137640,7.12822075,146.81,146.71,13.6317]
[1723511137819,5.4507,146.77,146.72,5.4525]
[1723511138011,5.4504,146.78,146.71,13.6317]
[1723511138441,52.7045,146.8,146.71,13.6317]
[1723511138742,59.08,146.77,146.66,5.4547]
[1723511138926,1.7042762,146.76,146.66,5.4547]
[1723511139236,5.4526,146.72,146.67,5.4544]
[1723511139439,5.453,146.71,146.66,5.4547]
[1723511139954,5.4521,146.74,146.68,5.4538]
[1723511140248,5.4523,146.73,146.68,5.4538]
[1723511140449,5.4523,146.73,146.67,13.6355]
[1723511140450,5.4519,146.74,146.69,5.4536]
[1723511140752,5.4519,146.74,146.7,5.4532]
[1723511140945,45.0,146.76,146.71,5.4529]
[1723511141149,5.4515,146.75,146.71,5.4529]
[1723511141362,7.12822075,146.81,146.67,46.92]
[1723511141649,66.92,146.83,146.67,46.92]
[1723511141650,5.4498,146.8,146.75,19.0793]
[1723511141831,46.92,146.83,146.69,0.12549]
[1723511141832,5.4509,146.77,146.72,5.4525]
[1723511142028,54.04810238,146.83,146.69,0.12549]
[1723511142227,73.1739,146.86,146.71,0.12549]
[1723511142450,53.1739,146.86,146.72,6.3221]
[1723511142649,5.4499,146.8,146.75,5.4513]
[1723511143752,5.4496,146.8,146.76,13.6271]
[1723511143928,5.4499,146.79,146.75,5.4511]
[1723511144328,80.5434,146.81,146.72,6.3221]
[1723511144526,66.92,146.78,146.68,6.0667]
[1723511144731,5.4534,146.7,146.68,6.0667]
[1723511144953,5.4529,146.71,146.68,6.0667]
[1723511145251,5.4525,146.72,146.68,6.0667]
[1723511145426,46.92,146.75,146.68,6.0667]
[1723511145633,5.4524,146.73,146.68,11.5204]
[1723511145834,5.4533,146.7,146.66,13.6361]
[1723511146355,5.4538,146.69,146.65,15.3556]
[1723511146564,5.4541,146.68,146.65,15.3556]
[1723511146735,5.4541,146.68,146.55,2.63524086]
[1723511146736,1.70465709,146.67,146.59,35.4055]
[1723511147055,46.92,146.72,146.65,5.4551]
[1723511147259,20.25098,146.73,146.66,5.4546]
[1723511147260,5.4529,146.71,146.66,5.4546]
[1723511147755,5.454,146.68,146.64,19.0933]
[1723511148351,13.88288,146.72,146.63,5.4558]
[1723511148556,5.4548,146.66,146.61,13.6412]
[1723511148963,5.4548,146.66,146.61,19.0975]
[1723511149166,0.12549,146.7,146.61,13.6412]
[1723511149352,5.4537,146.69,146.64,5.4554]
[1723511149671,5.454,146.68,146.64,5.4554]
[1723511150168,47.04549,146.72,146.63,13.6389]
[1723511150467,5.453,146.71,146.66,5.4544]
[1723511151051,5.4524,146.73,146.67,13.6353]
[1723511151378,5.4526,146.72,146.67,19.0895]
[1723511151559,5.4526,146.72,146.68,5.454]
[1723511151758,5.4526,146.72,146.67,19.0896]
[1723511152077,69.48358466,146.75,146.66,5.4547]
[1723511152369,69.48358466,146.75,146.64,13.88938]
[1723511152370,5.4529,146.71,146.67,5.4543]
[1723511152574,5.4526,146.72,146.66,13.6363]
[1723511152783,5.4522,146.73,146.68,5.454]
[1723511152979,5.4518,146.74,146.69,5.4536]
[1723511153198,5.4518,146.74,146.68,13.6345]
[1723511153476,5.4526,146.72,146.68,13.6345]
[1723511153682,7.13038889,146.75,146.65,13.6374]
[1723511153683,13.6296,146.74,146.65,13.6374]
[1723511153856,5.4533,146.7,146.65,5.4551]
[1723511154049,5.4529,146.71,146.66,5.4547]
[1723511154369,46.92,146.73,146.64,13.6383]
[1723511154575,5.4533,146.7,146.66,5.4547]
[1723511154869,5.4543,146.68,146.64,13.6383]
[1723511155251,5.4543,146.68,146.64,19.0938]
[1723511155658,5.4557,146.64,146.59,27.2196]
[1723511155872,46.92,146.67,146.59,21.7623]
[1723511156074,46.92,146.7,146.59,21.7623]
[1723511156283,66.95571503,146.69,146.59,21.7623]
[1723511156468,5.457,146.6,146.59,15.446]
[1723511156665,60.5593,146.64,146.55,6.5654]
[1723511156980,5.4569,146.61,146.55,6.5654]
[1723511157180,52.3758,146.64,146.59,5.4571]
[1723511157385,0.12549,146.66,146.57,13.6452]
[1723511157685,5.4555,146.64,146.59,5.457]
[1723511157901,5.4552,146.65,146.57,13.6452]
[1723511158179,5.456,146.63,146.59,13.6427]
[1723511158574,5.4555,146.64,146.59,19.1]
[1723511159388,46.92,146.67,146.59,13.6427]
[1723511160159,5.4555,146.65,146.6,5.4569]
[1723511160469,46.92,146.67,146.59,13.6427]
[1723511160470,52.3744,146.67,146.62,5.4562]
[1723511160783,0.12549,146.68,146.63,5.4558]
[1723511160784,5.4541,146.68,146.63,5.4558]
[1723511160960,5.4558,146.64,146.58,19.1016]
[1723511161468,5.4529,146.71,146.59,0.25098]
[1723511161672,66.92,146.72,146.63,5.4556]
[1723511161873,5.4537,146.69,146.64,5.4554]
[1723511162270,39.13,146.71,146.65,5.4551]
[1723511162477,39.13,146.74,146.64,15.745]
[1723511162662,39.13,146.77,146.68,13.6342]
[1723511162862,5.4511,146.76,146.71,5.4528]
[1723511163283,5.4511,146.76,146.65,6.41038]
[1723511163284,41.66452781,146.77,146.68,5.4539]
[1723511163487,5.4511,146.76,146.71,5.4529]
[1723511164089,39.13,146.77,146.69,13.6336]
[1723511164284,5.4511,146.76,146.71,5.4528]
[1723511164584,39.13,146.77,146.66,13.6365]
[1723511164585,59.13,146.77,146.66,13.6365]
[1723511164789,39.13,146.74,146.67,0.12549]
[1723511165097,44.583,146.71,146.66,19.0912]
[1723511165468,39.13,146.74,146.66,13.6365]
[1723511165976,5.453,146.71,146.66,19.0912]
[1723511166363,46.93,146.74,146.66,13.6365]
[1723511166562,46.93,146.74,146.7,5.4532]
[1723511166763,52.3818,146.74,146.68,19.0878]
[1723511167005,46.93,146.74,146.69,5.4536]
[1723511167292,46.93,146.74,146.68,19.088]
[1723511167887,46.93,146.74,146.5,34.78412252]
[1723511167888,5.4541,146.68,146.63,5.4558]
[1723511168092,46.93,146.71,146.61,6.525]
[1723511168093,5.4544,146.67,146.62,19.0967]
[1723511168388,52.3832,146.71,146.64,13.6383]
[1723511168584,0.25098,146.73,146.66,13.6364]
[1723511168788,5.4533,146.7,146.66,13.6364]
[1723511168994,5.4539,146.69,146.64,5.4552]
[1723511169294,5.4533,146.7,146.66,5.4547]
[1723511169474,52.383,146.71,146.66,5.4547]
[1723511169667,0.12549,146.7,146.61,20.1665]
[1723511169890,5.4548,146.66,146.62,5.4562]
[1723511170068,46.93,146.68,146.61,20.1665]
[1723511170389,46.93,146.72,146.62,27.281]
[1723511170584,46.93,146.72,146.66,19.0911]
[1723511170782,46.93,146.72,146.64,5.4555]
[1723511170985,5.4544,146.67,146.63,19.0951]
[1723511171297,5.4541,146.68,146.63,19.0951]
[1723511171480,5.4541,146.68,146.64,5.4554]
[1723511172903,20.0,146.7,146.61,6.525]
[1723511173091,46.93,146.66,146.6,19.0989]
[1723511173406,47.05549,146.69,146.6,13.6421]
[1723511173581,47.05549,146.69,146.62,5.4562]
[1723511173582,5.4547,146.67,146.62,5.4562]
[1723511173779,48.63480732,146.66,146.6,13.6421]
[1723511174197,5.4558,146.64,146.6,13.6421]
[1723511174506,46.93,146.66,146.6,13.6421]
[1723511175489,5.4553,146.65,146.6,13.6421]
[1723511175802,5.4553,146.65,146.6,19.099]
[1723511176408,5.4553,146.65,146.61,5.4566]
[1723511176810,5.4574,146.59,146.55,16.099]
[1723511176978,5.458,146.58,146.54,13.6479]
[1723511177401,46.93,146.6,146.54,13.6479]
[1723511177609,46.93,146.6,146.56,13.6459]
[1723511177791,46.93,146.6,146.53,19.7171]
[1723511177995,5.4577,146.58,146.53,25.1764]
[1723511178220,5.4574,146.59,146.54,5.4591]
[1723511178388,1.70590299,146.58,146.51,15.4146]
[1723511178594,48.63605352,146.57,146.5,13.6515]
[1723511178798,46.93,146.57,146.5,13.6515]
[1723511179318,52.3882,146.57,146.53,5.4595]
[1723511179493,5.4586,146.56,146.5,13.6515]
[1723511179688,46.93,146.57,146.51,5.46]
[1723511179689,5.4589,146.55,146.51,5.46]
[1723511179886,5.4585,146.56,146.5,13.6515]
[1723511180194,5.4593,146.54,146.5,13.6515]
[1723511180931,5.4589,146.55,146.5,19.1122]
[1723511181104,5.4593,146.54,146.5,13.6515]
[1723511181422,7.16602982,146.53,146.49,5.461]
[1723511181634,5.4597,146.53,146.48,5.4614]
[1723511182131,46.93,146.54,146.48,5.4614]
[1723511182329,46.93,146.54,146.47,29.0689]
[1723511182330,5.4614,146.48,146.44,13.6569]
[1723511182494,48.63697784,146.51,146.43,21.9491778]
[1723511182695,46.93,146.51,146.43,16.4859778]
[1723511182889,46.93,146.54,146.48,13.6529]
[1723511183201,5.4603,146.52,146.48,13.6529]
[1723511183706,52.3895,146.54,146.49,5.4609]
[1723511183909,5.4594,146.54,146.5,13.6513]
[1723511184311,66.93,146.58,146.49,5.4608]
[1723511184312,5.4596,146.53,146.49,5.4608]
[1723511184732,5.4593,146.54,146.49,5.4608]
[1723511185098,5.4599,146.53,146.47,13.6542]
[1723511185404,5.4599,146.53,146.47,19.1157]
[1723511185747,5.46,146.52,146.47,19.1157]
[1723511186204,44.6796,146.53,146.48,5.4613]
[1723511186822,0.12549,146.52,146.44,13.6572]
[1723511187032,5.4613,146.49,146.44,19.1198]
[1723511187340,5.4615,146.48,146.44,13.6572]
[1723511187535,5.4618,146.47,146.43,16.4859778]
[1723511187839,5.4618,146.47,146.43,0.8366778]
[1723511188215,39.22,146.5,146.44,5.4628]
[1723511188437,5.4615,146.48,146.44,5.4628]
[1723511188732,5.4619,146.47,146.43,19.9577778]
[1723511189558,39.22,146.47,146.43,0.8366778]
[1723511189839,44.6829,146.44,146.43,0.8366778]
[1723511190202,44.6829,146.44,146.36,6.1619]
[1723511190203,78.44,146.44,146.36,6.1619]
[1723511190409,5.4651,146.39,146.35,15.2762]
[1723511190634,5.4649,146.39,146.35,15.2762]
[1723511190938,5.4645,146.4,146.35,20.7425]
[1723511191242,39.22,146.41,146.37,5.4652]
[1723511191418,5.4641,146.41,146.37,5.4652]
[1723511191614,0.25098,146.43,146.35,28.9413]
[1723511191934,39.22,146.4,146.36,5.4659]
[1723511192125,39.22,146.4,146.35,28.9413]
[1723511192310,39.22,146.4,146.32,13.6683]
[1723511192505,44.6856,146.37,146.32,13.6683]
[1723511192706,44.6856,146.37,146.33,5.467]
[1723511192707,39.22,146.37,146.33,5.467]
[1723511192935,39.22,146.37,146.32,13.6683]
[1723511193335,39.22,146.37,146.33,5.467]
[1723511193527,39.22,146.37,146.32,19.1357]
[1723511193737,39.22,146.37,146.32,13.6683]
[1723511193921,44.6856,146.37,146.32,13.6683]
[1723511194645,44.6856,146.37,146.32,19.1356]
[1723511194948,7.17426691,146.36,146.32,13.6683]
[1723511195149,1.70841148,146.35,146.32,13.6683]
[1723511195318,7.17471148,146.35,146.31,28.0537]
[1723511195522,1.70841148,146.35,146.31,21.8918]
[1723511195817,7.17481148,146.35,146.3,5.4679]
[1723511196041,39.22,146.34,146.3,5.4679]
[1723511196615,44.6868,146.34,146.3,5.4679]
[1723511196943,39.22,146.34,146.3,5.4679]
[1723511197455,39.22,146.34,146.31,5.4678]
[1723511198420,39.22,146.37,146.32,5.4671]
[1723511198933,44.6858,146.37,146.32,5.4671]
[1723511199244,44.6849,146.39,146.33,13.6671]
[1723511199434,39.22,146.39,146.33,13.6671]
[1723511199742,20.0,146.41,146.31,5.4677]
[1723511199743,44.6859,146.36,146.31,5.4677]
[1723511199950,5.4664,146.35,146.3,19.1382]
[1723511200313,39.22,146.36,146.32,13.668]
[1723511200714,39.22,146.36,146.29,13.671]
[1723511201455,39.22,146.36,146.27,6.1092]
[1723511201456,39.22,146.33,146.27,6.1092]
[1723511201650,5.4682,146.3,146.26,13.6738]
[1723511201826,39.22,146.33,146.28,14.5084778]
[1723511202150,39.22,146.36,146.33,5.467]
[1723511202317,44.686,146.36,146.31,13.6688]
[1723511202829,5.4663,146.35,146.31,19.1365]
[1723511203028,39.22,146.36,146.32,5.4674]
[1723511203351,9.60748589,146.41,146.34,5.4666]
[1723511203352,44.6851,146.39,146.34,5.4666]
[1723511203530,39.22,146.39,146.33,13.6668]
[1723511203726,44.6851,146.39,146.34,5.4666]
[1723511203947,39.22,146.39,146.33,13.79229]
[1723511204125,39.22,146.39,146.33,13.6668]
[1723511204332,5.4656,146.37,146.33,13.6668]
[1723511204526,5.466,146.36,146.31,11.8144]
[1723511204717,39.22,146.39,146.31,11.8144]
[1723511204718,5.4663,146.35,146.31,11.8144]
[1723511205023,39.22,146.33,146.28,0.8366778]
[1723511205355,39.22,146.37,146.31,13.6687]
[1723511205562,5.4666,146.35,146.31,13.6687]
[1723511205720,0.12549,146.36,146.28,14.5085778]
[1723511205925,5.4675,146.32,146.28,14.5085778]
[1723511206122,5.4685,146.29,146.28,0.8366778]
[1723511206347,5.4682,146.3,146.28,0.8366778]
[1723511206546,39.22,146.31,146.28,6.3055778]
[1723511206745,39.22,146.31,146.28,0.8366778]
[1723511207047,5.4685,146.29,146.28,0.8366778]
[1723511207228,5.4683,146.3,146.28,0.8366778]
[1723511207629,5.4685,146.29,146.28,0.8366778]
[1723511207851,39.22,146.31,146.19,6.3203]
[1723511207852,39.22,146.3,146.19,6.3203]
[1723511208059,39.22,146.26,146.19,6.3203]
[1723511208467,26.0304,146.34,146.24,5.4704]
[1723511208468,5.4689,146.28,146.24,5.4704]
[1723511208636,5.4689,146.28,146.21,13.6789]
[1723511208959,39.22,146.29,146.21,13.6789]
[1723511209140,45.12549,146.28,146.21,13.6789]
[1723511209451,5.4709,146.23,146.19,6.3203]
[1723511209654,44.6909,146.23,146.19,6.3203]
[1723511209959,44.6909,146.23,146.18,19.1538]
[1723511210140,39.22,146.23,146.18,13.6814]
[1723511210345,44.6908,146.23,146.18,19.154]
[1723511210659,33.79859,146.28,146.15,6.426]
[1723511210660,39.22,146.2,146.15,6.426]
[1723511210964,39.22,146.2,146.14,13.6847]
[1723511211267,39.22,146.2,146.17,13.6826]
[1723511211556,39.22,146.23,146.17,13.6826]
[1723511211760,39.22,146.2,146.13,30.0789778]
[1723511211951,39.22,146.2,146.13,16.3934778]
[1723511212457,39.22,146.2,146.15,19.1574]
[1723511212671,5.4725,146.19,146.13,21.8678778]
[1723511212846,39.22,146.2,146.13,16.3934778]
[1723511213162,59.22,146.23,146.14,13.6853]
[1723511213335,39.22,146.2,146.14,13.6853]
[1723511213755,39.22,146.2,146.14,19.1591]
[1723511214058,1.71030586,146.22,146.14,19.1593]
[1723511214265,39.22,146.2,146.14,19.1593]
[1723511214449,39.22,146.2,146.14,13.6853]
[1723511214639,44.6922,146.2,146.14,19.1594]
[1723511214841,5.4724,146.19,146.14,19.1594]
[1723511215033,39.22,146.17,146.13,0.8366778]
[1723511215236,39.22,146.14,146.13,0.8366778]
[1723511216358,44.6942,146.14,146.13,0.8366778]
[1723511216871,44.6942,146.14,146.05,15.8547]
[1723511216872,84.34549,146.14,146.05,15.8547]
[1723511217039,39.22,146.1,146.05,15.8547]
[1723511217371,39.22,146.1,146.07,13.692]
[1723511218063,39.22,146.1,146.07,19.1685]
[1723511218237,39.22,146.1,146.07,13.692]
[1723511218437,39.22,146.1,146.07,19.1684]
[1723511218664,39.22,146.13,146.09,13.6893]
[1723511218868,39.22,146.17,146.05,15.8547]
[1723511219075,39.22,146.17,146.13,13.6856]
[1723511219243,39.22,146.17,146.16,5.4734]
[1723511219438,63.59255462,146.24,146.15,13.6839]
[1723511219439,39.22,146.2,146.17,5.4729]
[1723511219640,41.85396749,146.23,146.17,5.4729]
[1723511219963,61.85396749,146.23,146.15,19.1576]
[1723511220175,61.85396749,146.23,146.1,6.3887]
[1723511220176,39.22,146.23,146.17,13.6819]
[1723511220337,5.4716,146.21,146.17,13.6819]
[1723511220535,5.4716,146.21,146.16,5.4733]
[1723511220536,40.93016807,146.2,146.14,13.6854]
[1723511220748,39.22,146.17,146.09,15.2782]
[1723511220945,39.22,146.14,146.09,15.2782]
[1723511221147,39.22,146.14,146.09,28.9677]
[1723511221351,39.22,146.14,146.1,11.8643]
[1723511221563,39.22,146.14,146.11,5.4753]
[1723511221869,39.22,146.17,146.11,13.6875]
[1723511222188,39.22,146.17,146.16,5.4734]
[1723511222473,46.28155363,146.23,146.19,5.4722]
[1723511222474,39.22,146.23,146.19,5.4722]
[1723511222649,5.4723,146.19,146.13,13.6857]
[1723511222857,5.4723,146.19,146.14,5.4739]
[1723511223057,39.22,146.2,146.15,13.6839]
[1723511223236,46.29908533,146.23,146.12,5.4749]
[1723511223237,39.22,146.17,146.12,5.4749]
[1723511223442,44.6931,146.17,146.12,5.4749]
[1723511223943,59.97083953,146.23,146.1,5.4756]
[1723511223944,39.22,146.14,146.1,5.4756]
[1723511224149,39.22,146.14,146.13,5.4745]
[1723511224350,39.22,146.17,146.09,15.2782]
[1723511224645,39.22,146.17,146.11,13.6881]
[1723511224965,5.4738,146.15,146.11,13.6881]
[1723511225150,5.4738,146.15,146.1,5.4756]
[1723511225151,39.22,146.14,146.1,5.4756]
[1723511225350,39.22,146.12,146.02,6.5814]
[1723511225664,39.22,146.12,146.05,19.1712]
[1723511225665,5.4757,146.1,146.05,19.1712]
[1723511225843,39.22,146.12,146.05,13.6937]
[1723511226046,39.22,146.12,146.09,5.476]
[1723511226365,39.22,146.12,146.05,5.4772]
[1723511226366,5.4757,146.1,146.05,5.4772]
[1723511226548,39.22,146.12,146.05,5.4772]
[1723511227268,44.695,146.12,146.06,5.4771]
[1723511227481,39.22,146.12,146.06,13.6922]
[1723511227650,5.4766,146.08,146.03,13.6956]
[1723511227851,39.22,146.09,146.03,19.1739]
[1723511227852,1.71175294,146.07,146.03,19.1739]
[1723511228247,46.711753,146.08,146.02,5.4785]
[1723511228457,39.22,146.09,146.02,5.4785]
[1723511228748,2.67451022,146.15,146.0,47.3956]
[1723511229075,5.4761,146.09,146.04,5.4778]
[1723511229744,39.22,146.1,146.03,13.6956]
[1723511230141,44.6946,146.13,146.05,13.6931]
[1723511230387,39.22,146.11,146.0,47.3956]
[1723511230562,39.22,146.11,146.06,5.4771]
[1723511230762,39.22,146.11,146.04,5.4776]
[1723511230763,5.4757,146.1,146.04,5.4776]
[1723511230967,39.22,146.11,146.04,5.4776]
[1723511231271,39.22,146.11,146.03,19.1733]
[1723511231466,39.22,146.11,146.04,5.4778]
[1723511231667,45.0,146.1,146.03,13.6951]
[1723511231874,5.4766,146.08,146.03,13.6951]
[1723511232070,5.4761,146.09,146.03,13.6951]
[1723511232273,39.22,146.11,146.05,13.693]
[1723511232479,5.4761,146.09,146.04,5.4778]
[1723511232660,39.22,146.11,146.02,13.6965]
[1723511232869,39.22,146.11,146.0,47.3963]
[1723511233173,44.6956,146.11,146.04,13.6941]
[1723511233586,5.4738,146.15,146.1,5.4755]
[1723511233964,44.6935,146.16,146.11,5.4753]
[1723511234286,39.22,146.14,146.05,13.6937]
[1723511234473,5.4759,146.1,146.05,19.1709]
[1723511235194,5.4768,146.07,146.02,19.175]
[1723511235352,1.71164526,146.09,146.02,19.175]
[1723511235353,1.71198772,146.06,146.02,13.6964]
[1723511235547,39.22,146.05,146.0,20.0]
[1723511235976,45.0,146.07,146.0,20.0]
[1723511236171,5.4779,146.04,146.0,33.6983]
[1723511236381,7.1909531,146.03,146.0,20.0]
[1723511236761,5.479,146.01,146.0,20.0]
[1723511236967,5.4787,146.02,146.0,20.0]
[1723511237164,39.22,146.03,146.0,20.0]
[1723511237383,64.6975,146.06,146.0,25.4794]
[1723511237588,45.0,146.05,146.0,25.4794]
[1723511237903,5.479,146.01,146.0,20.0]
[1723511238055,39.34549,146.04,146.0,20.0]
[1723511238257,45.0,146.03,146.0,20.0]
[1723511238484,0.12549,146.02,146.0,20.0]
[1723511238687,5.60419,146.02,146.0,20.0]
[1723511238978,5.479,146.01,146.0,20.0]
[1723511239179,50.60449,146.01,146.0,20.0]
[1723511239378,25.48,145.99,145.93,5.4817]
[1723511239753,104.34549,145.98,145.89,13.7089]
[1723511239989,5.4814,145.95,145.89,13.7089]
[1723511240165,5.4818,145.94,145.89,19.1924]
[1723511240367,5.4818,145.94,145.85,6.2033]
[1723511240368,5.60789,145.93,145.87,5.4839]
[1723511240563,5.60789,145.93,145.86,13.7117]
[1723511240758,45.0,145.92,145.86,19.1963]
[1723511240960,39.34549,145.93,145.86,13.7117]
[1723511241159,20.0,145.96,145.88,13.709]
[1723511241160,39.22,145.96,145.88,13.709]
[1723511241359,20.0,145.96,145.9,5.4831]
[1723511241560,5.4817,145.94,145.88,13.7098]
[1723511241760,45.12549,145.95,145.86,5.4846]
[1723511241761,5.4829,145.91,145.86,5.4846]
[1723511242056,5.4829,145.91,145.84,16.4041778]
[1723511242057,1.71401807,145.9,145.84,0.8366778]
[1723511242275,1.71419074,145.89,145.84,6.3218778]
[1723511242457,25.60869,145.9,145.84,6.3218778]
[1723511242662,50.60899,145.89,145.84,6.3218778]
[1723511242857,45.12549,145.89,145.85,5.485]
[1723511243277,0.12549,145.88,145.84,0.8366778]
[1723511243559,5.485,145.86,145.84,0.8366778]
[1723511243887,39.22,145.87,145.84,6.3220778]
[1723511244182,39.22,145.93,145.87,13.7102]
[1723511244357,20.0,145.92,145.87,13.7102]
[1723511244557,39.22,145.93,145.84,0.8366778]
[1723511244558,5.4828,145.91,145.84,0.8366778]
[1723511244790,39.22,145.93,145.86,13.7117]
[1723511245086,39.22,145.9,145.85,5.485]
[1723511245288,44.7022,145.93,145.84,0.8366778]
[1723511245492,5.4824,145.92,145.86,5.4846]
[1723511245701,70.60829,145.91,145.85,13.7123]
[1723511246180,70.60829,145.91,145.84,0.8366778]
[1723511246181,20.0,145.88,145.84,0.8366778]
[1723511246377,52.19874089,145.87,145.84,0.8366778]
[1723511246579,45.0,145.87,145.84,0.8366778]
[1723511246795,46.83990236,145.88,145.84,0.8366778]
[1723511247298,45.0,145.87,145.84,0.8366778]
[1723511247471,0.12549,145.89,145.84,0.8366778]
[1723511247667,0.12549,145.91,145.86,5.4846]
[1723511247895,39.22,145.93,145.87,13.7108]
[1723511248191,44.7021,145.93,145.87,13.7108]
[1723511248568,5.4824,145.92,145.87,19.1951]
[1723511248772,20.0,145.89,145.84,0.8366778]
[1723511248986,5.4844,145.87,145.84,0.8366778]
[1723511249228,1.71452895,145.86,145.84,0.8366778]
[1723511249390,25.4846,145.87,145.84,0.8366778]
[1723511249587,20.0,145.88,145.84,0.8366778]
[1723511249780,0.12549,145.87,145.84,0.8366778]
[1723511249980,52.44979963,145.87,145.84,0.8366778]
[1723511250195,0.12549,145.85,145.84,0.8366778]
[1723511250372,25.4847,145.86,145.84,0.8366778]
[1723511250567,89.82979,145.87,145.84,0.8366778]
[1723511250795,5.4847,145.86,145.84,0.8366778]
[1723511250999,45.0,145.85,145.84,0.8366778]
[1723511251201,59.22,145.87,145.84,0.8366778]
[1723511251406,64.7044,145.87,145.84,0.8366778]
[1723511251578,39.22,145.87,145.84,0.8366778]
[1723511251786,5.4836,145.89,145.84,0.8366778]
[1723511251992,5.485,145.85,145.84,0.8366778]
[1723511252204,1.71462509,145.86,145.84,0.8366778]
[1723511252371,39.22,145.87,145.84,0.8366778]
[1723511252704,5.4835,145.89,145.84,0.8366778]
[1723511252915,20.0,145.88,145.84,0.8366778]
[1723511253093,44.7033,145.9,145.84,6.3219778]
[1723511253418,25.4836,145.89,145.84,0.8366778]
[1723511253720,39.22,145.9,145.86,5.4846]
[1723511253930,71.76122286,145.93,145.86,13.7117]
[1723511254212,39.22,145.99,145.94,5.4816]
[1723511254519,39.22,145.99,145.91,13.7067]
[1723511254520,39.22,146.02,145.95,5.4813]
[1723511254816,25.4793,146.01,145.96,5.4808]
[1723511255008,39.22,146.02,145.97,5.4805]
[1723511255312,5.4802,145.98,145.93,19.187]
[1723511255559,39.22,146.02,145.93,13.705]
[1723511255847,5.4779,146.04,145.98,5.4801]
[1723511256031,20.0,146.07,145.99,5.4798]